fUST/lending_fUST_20240725
["ID","MTS","AMOUNT","RATE_DAILY","PERIOD"]
[333108315,1721871050664,-1493.84,0.00014246,2]
[333108317,1721871050675,-603.77,0.00014246,2]
[333108319,1721871050686,-1106.8,0.00014246,2]
[333108322,1721871050698,-500.0,0.00014246,2]
[333108324,1721871050709,-461.52681752,0.00014246,2]
[333108326,1721871050720,-8127.92,0.00014246,2]
[333108328,1721871050730,-1337.77,0.00014246,2]
[333108330,1721871050745,-866.11,0.00014246,2]
[333108332,1721871050755,-8405.95,0.00014246,2]
[333108334,1721871050764,-163.364259,0.00014246,2]
[333108336,1721871050774,-508.72670725,0.00014246,2]
[333108338,1721871050784,-163.364259,0.00014246,2]
[333108340,1721871050794,-628.65,0.00014246,2]
[333108343,1721871050804,-1834.58,0.00014246,2]
[333108345,1721871050814,-500.0,0.00014246,2]
[333108347,1721871050824,-3776.9,0.00014246,2]
[333108349,1721871050834,-3919.17,0.00014246,2]
[333108351,1721871050846,-500.0,0.00014246,2]
[333108353,1721871050856,-151.0,0.00014246,2]
[333108356,1721871050867,-242.643056,0.00014246,2]
[333108358,1721871050877,-1180.57,0.00014246,2]
[333108360,1721871050887,-623.96,0.00014246,2]
[333108362,1721871050898,-500.0,0.00014246,2]
[333108364,1721871050908,-500.0,0.00014246,2]
[333108366,1721871050920,-500.0,0.00014246,2]
[333108369,1721871050932,-500.0,0.00014246,2]
[333108371,1721871050942,-1271.49385746,0.00014246,2]
[333108373,1721871050956,-198.13614254,0.00014246,2]
[333108376,1721871050967,-500.0,0.00014246,2]
[333108378,1721871050978,-781.99,0.00014246,2]
[333108380,1721871050994,-500.0,0.00014246,2]
[333108383,1721871051005,-565.13,0.00014246,2]
[333108385,1721871051016,-500.0,0.00014246,2]
[333108387,1721871051025,-500.0,0.00014246,2]
[333108389,1721871051037,-636.59,0.00014246,2]
[333108391,1721871051048,-500.0,0.00014246,2]
[333108393,1721871051057,-413.83607695,0.00014246,2]
[333108395,1721871051070,-86.16392305,0.00014246,2]
[333108397,1721871051079,-500.0,0.00014246,2]
[333108399,1721871051089,-2372.48,0.00014246,2]
[333108402,1721871051099,-973.96735313,0.00014246,2]
[333108427,1721871051393,-155.35807057,0.00013698,2]
[333108428,1721871051404,-500.0,0.00013698,2]
[333108429,1721871051417,-506.67384736,0.00013698,2]
[333108430,1721871051430,-500.0,0.00013698,2]
[333108431,1721871051440,-500.0,0.00013698,2]
[333108432,1721871051452,-131.46973289,0.00013698,2]
[333108433,1721871051466,-250.000025,0.00013698,2]
[333108732,1721871116968,180.25520631,0.000249,120]
[333108745,1721872007360,-200.0,9.517e-05,2]
[333108746,1721872007385,-101.60424317,9.52e-05,2]
[333108747,1721872031119,-200.0,9.52e-05,2]
[333108748,1721872031140,-196.45823022,9.999e-05,2]
[333108749,1721872031163,-201.60494629,9.999e-05,2]
[333108750,1721872031185,-400.0,0.0001089,2]
[333108751,1721872031209,-161.566816,0.00011689,2]
[333108752,1721872031233,-161.566816,0.00011727,2]
[333108753,1721872031259,-161.566816,0.00011765,2]
[333108754,1721872031283,-161.566816,0.00011803,2]
[333108755,1721872031306,-300.0,0.00011835,2]
[333108756,1721872031329,-2645.68371063,0.00011836,2]
[333108757,1721872162364,-200.0,9.425e-05,2]
[333108758,1721872162386,-142.83,9.43e-05,2]
[333108759,1721872166127,-57.17,9.43e-05,2]
[333108760,1721872166149,-315.94445946,9.999e-05,2]
[333108761,1721872166176,-403.93998287,9.999e-05,2]
[333108762,1721872166197,-156.54578449,9.999e-05,2]
[333108763,1721872166217,-190.30023107,9.999e-05,2]
[333108764,1721872166238,-160.19377685,9.999e-05,2]
[333108765,1721872166258,-154.91001126,9.999e-05,2]
[333108766,1721872166281,-400.0,0.000108,2]
[333108767,1721872166304,-24900.0,0.00011437,2]
[333108768,1721872166327,-300.0,0.00011835,2]
[333108769,1721872166347,-586.89403535,0.00011836,2]
[333108770,1721872166370,-161.566816,0.00011841,2]
[333108771,1721872166393,-161.566816,0.00011879,2]
[333108772,1721872166422,-161.566816,0.00011917,2]
[333108773,1721872166450,-161.566816,0.00011956,2]
[333108774,1721872166473,-161.566816,0.00011994,2]
[333108775,1721872166498,-161.566816,0.00012032,2]
[333108776,1721872166523,-161.566816,0.0001207,2]
[333108777,1721872166551,-161.566816,0.00012108,2]
[333108778,1721872166577,-161.566816,0.00012146,2]
[333108779,1721872166599,-161.566816,0.00012184,2]
[333108780,1721872166624,-161.566816,0.00012222,2]
[333108781,1721872166648,-161.566816,0.0001226,2]
[333108782,1721872166672,-161.566816,0.00012298,2]
[333108783,1721872167106,154.88244705,9.999e-05,2]
[333108784,1721872171904,943.20544634,9.999e-05,2]
[333108785,1721872173355,154.84698901,9.999e-05,2]
[333108786,1721872176590,273.37336231,9.9e-05,2]
[333108787,1721872177084,200.0,9.43e-05,2]
[333108788,1721872177129,400.0,0.000108,2]
[333108789,1721872185089,174.18204244,9.9e-05,2]
[333108790,1721872186536,3.66104776,0.00012119,2]
[333109250,1721872238092,-321.53373673,9.999e-05,2]
[333109252,1721872238103,-154.84123121,9.999e-05,2]
[333109255,1721872238115,-165.33123549,9.999e-05,2]
[333109257,1721872238126,-305.91047605,9.999e-05,2]
[333109259,1721872238136,-154.93591633,9.999e-05,2]
[333109261,1721872238145,-154.71377951,9.999e-05,2]
[333109263,1721872238155,-154.71377951,9.999e-05,2]
[333109265,1721872238165,-231.0501882,9.999e-05,2]
[333109267,1721872238175,-208.80339024,9.999e-05,2]
[333109269,1721872238185,-494.55510969,9.999e-05,2]
[333109271,1721872238194,-156.88527958,9.999e-05,2]
[333109273,1721872238204,-180.59511823,9.999e-05,2]
[333109275,1721872238215,-154.98598414,0.0001,2]
[333109277,1721872238225,-474.16303174,0.000108,2]
[333109279,1721872238237,-4731.99988799,0.000108,2]
[333109281,1721872238247,-2109.9565337,0.000108,2]
[333109283,1721872238258,-600.0,0.00012577,2]
[333109285,1721872238270,-848.60176643,0.00013091,2]
[333109287,1721872238280,-223.86199614,0.00013091,2]
[333109290,1721872238292,-184.55781023,0.00013091,2]
[333109292,1721872238304,-200.0,0.00013425,2]
[333109294,1721872238316,-1564.49412225,0.00013588,2]
[333109296,1721872238326,-463.10672564,0.00013598,2]
[333109298,1721872238336,-200.0,0.00013598,2]
[333109300,1721872238346,-5094.93,0.000136,2]
[333109302,1721872238355,-585.627975,0.000136,4]
[333109304,1721872238364,-300.0,0.00013687,2]
[333109306,1721872238374,-11955.9009118,0.00013688,2]
[333109361,1721872238889,-17226.7809588,0.00013688,2]
[333109363,1721872238899,-118.53024211,0.00013698,2]
[333109365,1721872238908,-500.0,0.00013698,2]
[333109367,1721872238917,-500.0,0.00013698,2]
[333109369,1721872238927,-500.0,0.00013698,2]
[333109371,1721872238936,-500.0,0.00013698,2]
[333109373,1721872238946,-500.0,0.00013698,2]
[333109375,1721872238955,-500.0,0.00013698,2]
[333109377,1721872238967,-500.0,0.00013698,2]
[333109379,1721872238976,-500.0,0.00013698,2]
[333109381,1721872238986,-500.0,0.00013698,2]
[333109383,1721872238996,-500.0,0.00013698,2]
[333109385,1721872239005,-500.0,0.00013698,2]
[333109387,1721872239015,-500.0,0.00013698,2]
[333109389,1721872239025,-500.0,0.00013698,2]
[333109391,1721872239034,-500.0,0.00013698,2]
[333109393,1721872239043,-500.0,0.00013698,2]
[333109395,1721872239053,-500.0,0.00013698,2]
[333109397,1721872239063,-500.0,0.00013698,2]
[333109399,1721872239074,-500.0,0.00013698,2]
[333109401,1721872239083,-213.56207409,0.00013698,2]
[333109403,1721872239093,-500.0,0.00013698,2]
[333109405,1721872239102,-500.0,0.00013698,2]
[333109407,1721872239112,-500.0,0.00013698,2]
[333109409,1721872239122,-500.0,0.00013698,2]
[333109411,1721872239131,-500.0,0.00013698,2]
[333109413,1721872239140,-500.0,0.00013698,2]
[333109415,1721872239151,-500.0,0.00013698,2]
[333109417,1721872239160,-500.0,0.00013698,2]
[333109419,1721872239170,-500.0,0.00013698,2]
[333109421,1721872239179,-500.0,0.00013698,2]
[333109423,1721872239189,-500.0,0.00013698,2]
[333109425,1721872239198,-500.0,0.00013698,2]
[333109427,1721872239208,-500.0,0.00013698,2]
[333109430,1721872239222,-500.0,0.00013698,2]
[333109432,1721872239232,-611.79360508,0.00013698,2]
[333109434,1721872239241,-505.46056473,0.00013698,2]
[333109436,1721872239252,-502.65123056,0.00013698,2]
[333109438,1721872239263,-506.61974828,0.00013698,2]
[333109440,1721872239272,-541.79007481,0.00013698,2]
[333109442,1721872239282,-500.0,0.00013698,2]
[333109444,1721872239291,-504.71827677,0.00013698,2]
[333109446,1721872239301,-376.67809294,0.00013698,2]
[333109448,1721872239310,-500.0,0.00013698,2]
[333109450,1721872239320,-505.34279505,0.00013698,2]
[333109452,1721872239329,-500.0,0.00013698,2]
[333109454,1721872239339,-500.0,0.00013698,2]
[333109456,1721872239348,-501.07409008,0.00013698,2]
[333109458,1721872239358,-500.0,0.00013698,2]
[333109460,1721872239367,-500.0,0.00013698,2]
[333109462,1721872239377,-305.57157475,0.00013698,2]
[333109464,1721872239386,-203.87881126,0.00013698,2]
[333109466,1721872239395,-540.84970233,0.00013698,2]
[333109468,1721872239405,-500.0,0.00013698,2]
[333109470,1721872239415,-419.63565238,0.00013698,2]
[333109472,1721872239425,-504.40368467,0.00013698,2]
[333109474,1721872239435,-580.99309092,0.00013698,2]
[333109476,1721872239445,-640.52,0.00013698,2]
[333109478,1721872239456,-504.83964505,0.00013698,2]
[333109480,1721872239471,-505.73995559,0.00013698,2]
[333109483,1721872239481,-500.0,0.00013698,2]
[333109485,1721872239492,-505.68117657,0.00013698,2]
[333109487,1721872239503,-500.0,0.00013698,2]
[333109489,1721872239514,-1076.07,0.00013698,2]
[333109492,1721872239526,-261.53785997,0.00013698,2]
[333109494,1721872239538,-505.68535452,0.00013698,2]
[333109496,1721872239551,-506.1392593,0.00013698,2]
[333109498,1721872239561,-500.0,0.00013698,2]
[333109500,1721872239570,-502.80390762,0.00013698,2]
[333109502,1721872239579,-515.11208084,0.00013698,2]
[333109504,1721872239590,-504.17800939,0.00013698,2]
[333109506,1721872239601,-500.91400909,0.00013698,2]
[333109509,1721872239612,-387.36363391,0.00013698,2]
[333109511,1721872239623,-1253.95,0.00013698,2]
[333109513,1721872239636,-500.0,0.00013698,2]
[333109515,1721872239648,-505.70818198,0.00013698,2]
[333109518,1721872239660,-492.6506553,0.00013698,2]
[333109520,1721872239671,-1417.29,0.00013698,2]
[333109522,1721872239681,-504.834641,0.00013698,2]
[333109525,1721872239691,-523.86926471,0.00013698,2]
[333109527,1721872239701,-520.73279932,0.00013698,2]
[333109530,1721872239715,-500.0,0.00013698,2]
[333109533,1721872239726,-500.0,0.00013698,2]
[333109536,1721872239736,-1935.25,0.00013698,2]
[333109538,1721872239747,-500.0,0.00013698,2]
[333109540,1721872239761,-500.0,0.00013698,2]
[333109542,1721872239771,-500.0,0.00013698,2]
[333109544,1721872239781,-500.0,0.00013698,2]
[333109546,1721872239791,-3098.57,0.00013698,2]
[333109548,1721872239801,-500.0,0.00013698,2]
[333109550,1721872239811,-500.0,0.00013698,2]
[333109552,1721872239821,-541.14861658,0.00013698,2]
[333109554,1721872239831,-534.05017397,0.00013698,2]
[333109556,1721872239841,-500.0,0.00013698,2]
[333109559,1721872239855,-505.48214853,0.00013698,2]
[333109561,1721872239865,-500.0,0.00013698,2]
[333109563,1721872239875,-500.0,0.00013698,2]
[333109565,1721872239885,-521.79459093,0.00013698,2]
[333109567,1721872239895,-500.0,0.00013698,2]
[333109569,1721872239904,-500.0,0.00013698,2]
[333109571,1721872239914,-505.09664966,0.00013698,2]
[333109573,1721872239923,-500.0,0.00013698,2]
[333109575,1721872239933,-1618.04,0.00013698,2]
[333109577,1721872239943,-1147.11,0.00013698,2]
[333109579,1721872239953,-505.08200781,0.00013698,2]
[333109581,1721872239968,-1050.17,0.00013698,2]
[333109582,1721872239978,-569.17,0.00013698,2]
[333109583,1721872239991,-502.88441014,0.00013698,2]
[333109584,1721872240001,-1210.06,0.00013698,2]
[333109585,1721872240011,-510.87661142,0.00013698,2]
[333109586,1721872240020,-500.0,0.00013698,2]
[333109588,1721872240030,-500.0,0.00013698,2]
[333109604,1721872240169,-236.40541634,0.00013698,2]
[333109607,1721872240190,-506.13070366,0.00013698,2]
[333109609,1721872240200,-500.0,0.00013698,2]
[333109611,1721872240213,-500.0,0.00013698,2]
[333109613,1721872240225,-500.0,0.00013698,2]
[333109615,1721872240235,-504.23231912,0.00013698,2]
[333109617,1721872240245,-514.07271305,0.00013698,2]
[333109620,1721872240255,-601.77572704,0.00013698,2]
[333109622,1721872240266,-503.94099143,0.00013698,2]
[333109624,1721872240276,-627.60950321,0.00013698,2]
[333109626,1721872240286,-500.0,0.00013698,2]
[333109628,1721872240296,-650.52,0.00013698,2]
[333109630,1721872240306,-500.0,0.00013698,2]
[333109632,1721872240316,-1638.97,0.00013698,2]
[333109634,1721872240326,-717.87,0.00013698,2]
[333109636,1721872240337,-500.0,0.00013698,2]
[333109638,1721872240347,-506.26454286,0.00013698,2]
[333109641,1721872240359,-956.65,0.00013698,2]
[333109643,1721872240371,-500.0,0.00013698,2]
[333109645,1721872240381,-536.27841889,0.00013698,2]
[333109647,1721872240391,-1423.98,0.00013698,2]
[333109649,1721872240402,-500.25,0.00013698,2]
[333109652,1721872240416,-500.0,0.00013698,2]
[333109654,1721872240427,-640.32333384,0.00013698,2]
[333109656,1721872240440,-500.0,0.00013698,2]
[333109658,1721872240449,-500.0,0.00013698,2]
[333109660,1721872240460,-427.11058276,0.00013698,2]
[333109662,1721872240477,-1468.09,0.00013698,2]
[333109664,1721872240485,-500.0,0.00013698,2]
[333109666,1721872240496,-500.0,0.00013698,2]
[333109668,1721872240506,-500.0,0.00013698,2]
[333109670,1721872240517,-500.65962423,0.00013698,2]
[333109672,1721872240526,-500.0,0.00013698,2]
[333109674,1721872240536,-500.0,0.00013698,2]
[333109676,1721872240546,-500.0,0.00013698,2]
[333109679,1721872240557,-500.0,0.00013698,2]
[333109681,1721872240568,-525.78238354,0.00013698,2]
[333109683,1721872240578,-503.83511573,0.00013698,2]
[333109685,1721872240588,-532.10070053,0.00013698,2]
[333109687,1721872240597,-1384.93,0.00013698,2]
[333109689,1721872240607,-664.19,0.00013698,2]
[333109691,1721872240616,-500.0,0.00013698,2]
[333109693,1721872240626,-647.28,0.00013698,2]
[333109695,1721872240635,-500.0,0.00013698,2]
[333109697,1721872240646,-505.47843786,0.00013698,2]
[333109699,1721872240655,-505.48264692,0.00013698,2]
[333109701,1721872240665,-521.77,0.00013698,2]
[333109703,1721872240675,-500.0,0.00013698,2]
[333109705,1721872240684,-500.0,0.00013698,2]
[333109707,1721872240694,-500.0,0.00013698,2]
[333109709,1721872240705,-733.38,0.00013698,2]
[333109711,1721872240716,-523.5234044,0.00013698,2]
[333109714,1721872240726,-502.66604784,0.00013698,2]
[333109716,1721872240735,-1064.81,0.00013698,2]
[333109718,1721872240744,-1559.77,0.00013698,2]
[333109720,1721872240755,-500.0,0.00013698,2]
[333109722,1721872240766,-504.68064438,0.00013698,2]
[333109724,1721872240777,-1121.82,0.00013698,2]
[333109726,1721872240787,-1285.5,0.00013698,2]
[333109729,1721872240798,-519.45,0.00013698,2]
[333109731,1721872240810,-515.5717561,0.00013698,2]
[333109733,1721872240822,-602.70360394,0.00013698,2]
[333109735,1721872240831,-500.0,0.00013698,2]
[333109737,1721872240843,-500.0,0.00013698,2]
[333109739,1721872240853,-500.0,0.00013698,2]
[333109741,1721872240864,-500.0,0.00013698,2]
[333109743,1721872240874,-500.0,0.00013698,2]
[333109746,1721872240884,-500.0,0.00013698,2]
[333109748,1721872240895,-500.0,0.00013698,2]
[333109750,1721872240904,-500.0,0.00013698,2]
[333109752,1721872240914,-500.0,0.00013698,2]
[333109754,1721872240924,-597.89517469,0.00013698,2]
[333109756,1721872240933,-505.41470692,0.00013698,2]
[333109758,1721872240943,-1564.65,0.00013698,2]
[333109760,1721872240952,-500.0,0.00013698,2]
[333109762,1721872240964,-1764.36,0.00013698,2]
[333109764,1721872240974,-500.74768592,0.00013698,2]
[333109766,1721872240983,-500.0,0.00013698,2]
[333109768,1721872240993,-612.65988662,0.00013698,2]
[333109770,1721872241006,-525.62,0.00013698,2]
[333109772,1721872241015,-500.0,0.00013698,2]
[333109774,1721872241025,-500.0,0.00013698,2]
[333109776,1721872241034,-500.0,0.00013698,2]
[333109778,1721872241043,-500.0,0.00013698,2]
[333109780,1721872241052,-503.74727842,0.00013698,2]
[333109782,1721872241063,-504.57876301,0.00013698,2]
[333109784,1721872241072,-502.24956941,0.00013698,2]
[333109786,1721872241081,-500.0,0.00013698,2]
[333109788,1721872241090,-500.0,0.00013698,2]
[333109790,1721872241100,-503.16092509,0.00013698,2]
[333109792,1721872241109,-956.18,0.00013698,2]
[333109794,1721872241118,-500.0,0.00013698,2]
[333109796,1721872241127,-925.49,0.00013698,2]
[333109798,1721872241137,-500.0,0.00013698,2]
[333109800,1721872241146,-503.15485837,0.00013698,2]
[333109802,1721872241156,-518.65520963,0.00013698,2]
[333109804,1721872241165,-500.0,0.00013698,2]
[333109806,1721872241174,-505.66509828,0.00013698,2]
[333109808,1721872241184,-502.90328145,0.00013698,2]
[333109810,1721872241193,-501.29534174,0.00013698,2]
[333109812,1721872241203,-501.29786532,0.00013698,2]
[333109814,1721872241215,-500.0,0.00013698,2]
[333109816,1721872241224,-500.0,0.00013698,2]
[333109818,1721872241234,-952.06,0.00013698,2]
[333109819,1721872241243,-500.0,0.00013698,2]
[333109820,1721872241253,-650.06,0.00013698,2]
[333109821,1721872241262,-4573.67,0.00013698,2]
[333109822,1721872241272,-4125.74,0.00013698,2]
[333109823,1721872241281,-500.0,0.00013698,2]
[333109824,1721872241291,-500.0,0.00013698,2]
[333109825,1721872241300,-502.95898011,0.00013698,2]
[333109826,1721872241310,-500.0,0.00013698,2]
[333109827,1721872241319,-503.83171218,0.00013698,2]
[333109828,1721872241329,-993.84,0.00013698,2]
[333109829,1721872241339,-600.88,0.00013698,2]
[333109830,1721872241348,-1663.32,0.00013698,2]
[333109831,1721872241358,-1594.99,0.00013698,2]
[333109832,1721872241367,-500.0,0.00013698,2]
[333109833,1721872241377,-1785.91,0.00013698,2]
[333109834,1721872241386,-504.16219307,0.00013698,2]
[333109835,1721872241396,-782.88,0.00013698,2]
[333109836,1721872241405,-501.55807119,0.00013698,2]
[333109837,1721872241414,-514.90877092,0.00013698,2]
[333109838,1721872241423,-555.22,0.00013698,2]
[333109839,1721872241433,-500.0,0.00013698,2]
[333109840,1721872241443,-1425.12,0.00013698,2]
[333109841,1721872241452,-500.0,0.00013698,2]
[333109842,1721872241465,-501.70296223,0.00013698,2]
[333109843,1721872241477,-796.1,0.00013698,2]
[333109844,1721872241487,-500.0,0.00013698,2]
[333109845,1721872241496,-500.0,0.00013698,2]
[333109846,1721872241506,-170.38399636,0.00013698,2]
[333109847,1721872241516,-1059.1,0.00013698,2]
[333109848,1721872241526,-7707.67,0.00013698,2]
[333109849,1721872241535,-1226.73,0.00013698,2]
[333109850,1721872241546,-505.88846711,0.00013698,2]
[333109852,1721872241556,-1082.59,0.00013698,2]
[333109854,1721872241565,-500.0,0.00013698,2]
[333109856,1721872241575,-503.18072347,0.00013698,2]
[333109858,1721872241585,-1712.81,0.00013698,2]
[333109860,1721872241594,-500.0,0.00013698,2]
[333109862,1721872241603,-3473.88,0.00013698,2]
[333109863,1721872241613,-360.96765837,0.00013698,2]
[333109864,1721872241624,-507.16158745,0.00013698,2]
[333109865,1721872241635,-572.41,0.00013698,2]
[333109866,1721872241646,-500.0,0.00013698,2]
[333109867,1721872241655,-3598.57,0.00013698,2]
[333109868,1721872241666,-500.0,0.00013698,2]
[333109870,1721872241676,-514.38798571,0.00013698,2]
[333109872,1721872241687,-500.0,0.00013698,2]
[333109874,1721872241697,-500.0,0.00013698,2]
[333109876,1721872241707,-500.0,0.00013698,2]
[333109879,1721872241720,-500.0,0.00013698,2]
[333109881,1721872241731,-500.0,0.00013698,2]
[333109882,1721872241741,-500.0,0.00013698,2]
[333109884,1721872241753,-500.0,0.00013698,2]
[333109885,1721872241763,-500.0,0.00013698,2]
[333109886,1721872241773,-500.0,0.00013698,2]
[333109887,1721872241783,-504.53262261,0.00013698,2]
[333109888,1721872241794,-1416.71,0.00013698,2]
[333109889,1721872241806,-502.22399325,0.00013698,2]
[333109890,1721872241816,-500.0,0.00013698,2]
[333109891,1721872241827,-500.0,0.00013698,2]
[333109892,1721872241838,-757.5,0.00013698,2]
[333109893,1721872241848,-500.0,0.00013698,2]
[333109894,1721872241860,-500.0,0.00013698,2]
[333109895,1721872241870,-503.94165723,0.00013698,2]
[333109896,1721872241881,-501.41004709,0.00013698,2]
[333109897,1721872241891,-603.38514548,0.00013698,2]
[333109898,1721872241901,-500.0,0.00013698,2]
[333109899,1721872241911,-515.53496397,0.00013698,2]
[333109900,1721872241924,-586.27,0.00013698,2]
[333109901,1721872241938,-502.7971173,0.00013698,2]
[333109902,1721872241947,-504.3104575,0.00013698,2]
[333109903,1721872241958,-500.0,0.00013698,2]
[333109904,1721872241971,-533.68203474,0.00013698,2]
[333109905,1721872241981,-504.66866122,0.00013698,2]
[333109906,1721872241990,-500.0,0.00013698,2]
[333109907,1721872242000,-500.0,0.00013698,2]
[333109908,1721872242009,-500.0,0.00013698,2]
[333109909,1721872242019,-2079.93,0.00013698,2]
[333109910,1721872242029,-606.84197942,0.00013698,2]
[333109911,1721872242039,-1681.19,0.00013698,2]
[333109912,1721872242049,-420.74879426,0.00013698,2]
[333109913,1721872242059,-2084.0,0.00013698,2]
[333109914,1721872242069,-500.0,0.00013698,2]
[333109915,1721872242078,-503.02431613,0.00013698,2]
[333109916,1721872242088,-771.29,0.00013698,2]
[333109917,1721872242097,-500.0,0.00013698,2]
[333109918,1721872242107,-521.65993509,0.00013698,2]
[333109919,1721872242117,-500.0,0.00013698,2]
[333109920,1721872242126,-1470.43,0.00013698,2]
[333109921,1721872242136,-500.0,0.00013698,2]
[333109922,1721872242145,-3889.31,0.00013698,2]
[333109923,1721872242155,-551.93,0.00013698,2]
[333109924,1721872242164,-500.0,0.00013698,2]
[333109925,1721872242173,-786.15,0.00013698,2]
[333109926,1721872242182,-653.64,0.00013698,2]
[333109927,1721872242192,-500.0,0.00013698,2]
[333109928,1721872242201,-500.0,0.00013698,2]
[333109929,1721872242210,-500.0,0.00013698,2]
[333109930,1721872242222,-766.66,0.00013698,2]
[333109931,1721872242231,-3772.53,0.00013698,2]
[333109932,1721872242241,-1537.84,0.00013698,2]
[333109933,1721872242251,-628.03,0.00013698,2]
[333109934,1721872242260,-505.92978502,0.00013698,2]
[333109935,1721872242270,-2509.9,0.00013698,2]
[333109936,1721872242279,-500.0,0.00013698,2]
[333109938,1721872242290,-12546.29,0.00013698,2]
[333109940,1721872242299,-506.75445763,0.00013698,2]
[333109941,1721872242308,-4321.45,0.00013698,2]
[333109943,1721872242318,-505.20322338,0.00013698,2]
[333109945,1721872242328,-500.0,0.00013698,2]
[333109947,1721872242337,-9751.72,0.00013698,2]
[333109949,1721872242347,-549.27,0.00013698,2]
[333109951,1721872242358,-647.32618468,0.00013698,2]
[333109952,1721872242368,-505.77335045,0.00013698,2]
[333109953,1721872242378,-500.0,0.00013698,2]
[333109954,1721872242388,-500.0,0.00013698,2]
[333109955,1721872242399,-747.62,0.00013698,2]
[333109956,1721872242411,-5945.7,0.00013698,2]
[333109957,1721872242422,-500.0,0.00013698,2]
[333109958,1721872242432,-500.0,0.00013698,2]
[333109959,1721872242444,-502.63580816,0.00013698,2]
[333109960,1721872242454,-500.0,0.00013698,2]
[333109961,1721872242469,-659.54,0.00013698,2]
[333109963,1721872242478,-1578.8,0.00013698,2]
[333109965,1721872242487,-1648.8,0.00013698,2]
[333109967,1721872242497,-500.0,0.00013698,2]
[333109969,1721872242507,-1780.96,0.00013698,2]
[333109971,1721872242516,-2104.64,0.00013698,2]
[333109973,1721872242525,-1728.69,0.00013698,2]
[333109975,1721872242535,-500.0,0.00013698,2]
[333109976,1721872242546,-500.0,0.00013698,2]
[333109977,1721872242556,-505.20064033,0.00013698,2]
[333109978,1721872242565,-500.0,0.00013698,2]
[333109979,1721872242575,-503.54333543,0.00013698,2]
[333109980,1721872242584,-506.75524932,0.00013698,2]
[333109981,1721872242594,-760.48,0.00013698,2]
[333109982,1721872242606,-1260.18,0.00013698,2]
[333109983,1721872242617,-500.0,0.00013698,2]
[333109984,1721872242627,-505.23230506,0.00013698,2]
[333109985,1721872242638,-500.0,0.00013698,2]
[333109986,1721872242649,-500.0,0.00013698,2]
[333109987,1721872242659,-637.86914856,0.00013698,2]
[333109988,1721872242669,-197.56621959,0.00013698,2]
[333109989,1721872242678,-598.29278833,0.00013698,2]
[333109990,1721872242688,-598.29278833,0.00013698,2]
[333109991,1721872242697,-500.0,0.00013698,2]
[333109992,1721872242707,-598.29278833,0.00013698,2]
[333109993,1721872242717,-500.0,0.00013698,2]
[333109994,1721872242756,-598.29278833,0.00013698,2]
[333109995,1721872242767,-500.0,0.00013698,2]
[333109996,1721872242778,-598.29278833,0.00013698,2]
[333109997,1721872242788,-1571.43,0.00013698,2]
[333109998,1721872242798,-598.29278833,0.00013698,2]
[333109999,1721872242808,-500.0,0.00013698,2]
[333110000,1721872242818,-500.0,0.00013698,2]
[333110001,1721872242828,-598.29278833,0.00013698,2]
[333110002,1721872242839,-568.42950689,0.00013698,2]
[333110003,1721872242850,-598.29278833,0.00013698,2]
[333110004,1721872242860,-598.29278833,0.00013698,2]
[333110005,1721872242870,-791.756996,0.00013699,2]
[333110006,1721872242882,-3000.0,0.00013699,2]
[333110007,1721872242893,-150.112233,0.000137,2]